Cogmind - Beta 12 @@@ ROGUE MODE // 2023.05.10 @ 22:03:00 Player: Mr Goldstein Result: Destroyed by Lightning with EMDS Performance ------------- Evolutions (4) 2000 Regions Visited (15) 3000 Robots Destroyed (24) 120 Value Destroyed (919) 919 Prototype IDs (239) 4780 Alien Tech Used (0) 0 Bonus (4659) 4659 TOTAL SCORE: 15478 Bonus ------- Pacifist 634 Follower Combat Kills 25 Network Hubs Disabled 400 Aligned with FarCom 300 Met Data Miner 300 Used Data Conduit 3000 Cogmind --------- Core Integrity 0/850 Matter 284/300 Energy 100/100 System Corruption 10% Temperature Cool (0) Movement Core (50) Location -6/Hub_04(d) Parts ------- > --- POWER (2) -------- (None) > --- PROPULSION (7) --- (None) > --- UTILITY (4) ------ Advanced Visual Processing Unit > --- WEAPON (2) ------- Lance > --- INVENTORY (5) ---- Micro Nuclear Core Peak State ------------ > --- POWER ------------ Micro Nuclear Core > --- PROPULSION ------- Cesium-ion Thruster Cesium-ion Thruster Cesium-ion Thruster Flying Fortress v7 > --- UTILITY ---------- Medium Storage Unit Advanced Visual Processing Unit Improved Medium Armor Plating > --- WEAPON ----------- Heavy Missile Launcher Lance > --- INVENTORY -------- Micro Nuclear Core Micro Nuclear Core Xenon Bombardment Thruster Nuclear Pulse Thruster Backup Laser I Backup Laser I [Rating: 64] Favorites ----------- Power Backup Power I Engine Backup Power I Power Core Micro Nuclear Core Propulsion Cesium-ion Thruster Flight Unit Cesium-ion Thruster Utility Improved Medium Armor Plating Storage Medium Storage Unit Processor Advanced Visual Processing Unit Hackware Hacking Suite Protection Improved Medium Armor Plating Weapon Lance Energy Gun Backup Laser I Launcher Heavy Missile Launcher Piercing Weapon Lance Build | -11 -10 -10 -10 -9 -8 -7 -7 -7 -7 -6 -6 -6 -6 -6 -6 ------- Run | Jun Mat Min Exi Min Mat Fac Low Low Dat Pro Fac Ext Cet Arc Hub Slots Evolved 8 | . . . . . 4 2 . . . . 2 . . . . Power 1 | . . . . . . 1 . . . . . . . . . Propulsion 5 | . . . . . 2 1 . . . . 2 . . . . Utility 2 | . . . . . 2 . . . . . . . . . . Weapon . | . . . . . . . . . . . . . . . . Parts Attached 27 | . . 3 . . 3 7 1 . . 3 2 2 1 . 5 Power 3 | . . . . . 1 . . . . 1 . . . . 1 Engine . | . . . . . . . . . . . . . . . . Core 3 | . . . . . 1 . . . . 1 . . . . 1 Reactor . | . . . . . . . . . . . . . . . . Propulsion 8 | . . 1 . . . 2 . . . . 2 . . . 3 Treads . | . . . . . . . . . . . . . . . . Leg . | . . . . . . . . . . . . . . . . Wheel . | . . . . . . . . . . . . . . . . Hover . | . . . . . . . . . . . . . . . . Flight 8 | . . 1 . . . 2 . . . . 2 . . . 3 Utility 8 | . . 2 . . 2 2 1 . . . . 1 . . . Device . | . . . . . . . . . . . . . . . . Storage 1 | . . . . . . 1 . . . . . . . . . Processor 4 | . . 1 . . 2 . . . . . . 1 . . . Hackware 1 | . . 1 . . . . . . . . . . . . . Protection 2 | . . . . . . 1 1 . . . . . . . . Artifact . | . . . . . . . . . . . . . . . . Weapon 8 | . . . . . . 3 . . . 2 . 1 1 . 1 Energy Gun 1 | . . . . . . . . . . . . . 1 . . Energy Cannon . | . . . . . . . . . . . . . . . . Ballistic Gun . | . . . . . . . . . . . . . . . . Ballistic Cannon . | . . . . . . . . . . . . . . . . Launcher 4 | . . . . . . 1 . . . 1 . 1 . . 1 Special Weapon . | . . . . . . . . . . . . . . . . Impact Weapon . | . . . . . . . . . . . . . . . . Slashing Weapon . | . . . . . . . . . . . . . . . . Piercing Weapon 3 | . . . . . . 2 . . . 1 . . . . . Special Melee Weapon . | . . . . . . . . . . . . . . . . Unidentified Prototypes . | . . . . . . . . . . . . . . . . Parts Lost 20 | . . . . . 1 5 . . 1 1 . . 1 3 8 Power 4 | . . . . . . 1 . . . 1 . . . . 2 Propulsion 8 | . . . . . . 1 . . . . . . . 2 5 Utility 5 | . . . . . 1 2 . . 1 . . . 1 . . Weapon 3 | . . . . . . 1 . . . . . . . 1 1 Highest Loss Streak 8 | . . . . . 1 3 . . 1 1 . . 1 4 8 To Critical Strikes 1 | . . . . . . . . . . . . . . 1 . Average Slot Usage (%) 48 | . . 21 42 42 37 58 53 53 53 48 53 59 64 46 28 Engine 4 | . . . . . . 10 7 7 7 7 . . . . . Core 1 | . . . . . . . . . . . 6 6 6 6 5 Flight 15 | . . 7 14 14 9 14 15 15 15 15 26 26 26 20 9 Storage 4 | . . . . . . 7 7 7 7 7 6 6 6 . . Processor 7 | . . 7 14 14 22 15 . . . . . . 6 6 6 Hackware 2 | . . 7 14 14 6 . . . . . . . . . . Protection 5 | . . . . . . 4 15 15 15 7 6 6 4 . . Piercing Weapon 4 | . . . . . . 3 7 7 7 7 6 6 6 6 6 Naked Turns 77 | . 22 55 . . . . . . . . . . . . . Heaviest Build 33 | . . . . . . 22 28 28 28 28 26 33 33 20 22 Greatest Support 65 | 3 3 5 5 5 5 55 55 55 55 55 65 65 65 65 22 Greatest Overweight (x) . | . . . . . . . . . . . . . . . . Average Overweight (x) . | . . . . . . . . . . . . . . . . Largest Inventory Capacity 10 | 5 5 5 5 5 5 10 10 10 10 10 10 10 10 10 5 Average Capacity 8 | 5 5 5 5 5 5 9 10 10 10 10 10 10 10 7 5 Most Carried 10 | . . . 4 5 5 10 8 8 8 8 6 6 6 6 5 Average Carried 5 | . . . 1 4 5 5 8 8 8 7 5 5 6 5 2 Final Capacity 10 | 5 5 5 5 5 5 10 10 10 10 10 10 10 10 5 5 Final Carried 8 | . . . 4 5 5 8 8 8 8 7 6 6 6 5 1 Class Distribution -------------------- 82% | Mutant 17% | Sprinter Dominant Class ---------------- Mutant | -10/Materials Mutant | -10/Mines Mutant | -10/Exiles Mutant | -9/Mines Mutant | -8/Materials Mutant | -7/Factory Mutant | -7/Lower Caves Mutant | -7/Lower Caves Mutant | -7/Data Miner Mutant | -6/Proximity Caves Sprinter | -6/Factory Sprinter | -6/Extension Sprinter | -6/Cetus Mutant | -6/Archives Mutant | -6/Hub_04(d) Resources | -11 -10 -10 -10 -9 -8 -7 -7 -7 -7 -6 -6 -6 -6 -6 -6 ----------- Run | Jun Mat Min Exi Min Mat Fac Low Low Dat Pro Fac Ext Cet Arc Hub Matter Collected 568 | 196 . 19 . 15 . 1 20 69 . 84 . 142 . . 22 Remotely . | . . . . . . . . . . . . . . . . Salvage Created 417 | . . . . . . 32 . . . 161 . 85 . . 139 Parts 34 | . . . . . . 5 . . . 16 . 9 . . 4 Haulers Intercepted . | . . . . . . . . . . . . . . . . Recyclers Shooed . | . . . . . . . . . . . . . . . . Parts Field Recycled . | . . . . . . . . . . . . . . . . Retrieved Matter . | . . . . . . . . . . . . . . . . Parts Self-Destructed 17 | . . . . . . . 3 . . 14 . . . . . Prevented 1 | . . . . . . . 1 . . . . . . . . Kills | -11 -10 -10 -10 -9 -8 -7 -7 -7 -7 -6 -6 -6 -6 -6 -6 ------- Run | Jun Mat Min Exi Min Mat Fac Low Low Dat Pro Fac Ext Cet Arc Hub Combat Hostiles Destroyed 20 | . . . . . . 3 . . . 10 . 4 . . 3 Melee 1 | . . . . . . . . . . . . 1 . . . AOE 19 | . . . . . . 3 . . . 10 . 3 . . 3 Classes Destroyed 6 | . . . . . . 1 . . . 1 . 2 . . 2 Worker 1 | . . . . . . . . . . . . . . . 1 Minesweeper 1 | . . . . . . . . . . 1 . . . . . Watcher 2 | . . . . . . . . . . . . 1 . . 1 Swarmer 18 | . . . . . . 3 . . . 10 . 3 . . 2 Duelist 1 | . . . . . . . . . . . . . . . 1 Programmer 1 | . . . . . . . . . . . . 1 . . . Best Kill Streak 7 | . . . . . . 3 . . . 7 . 3 . . 5 Combat Bots Only 6 | . . . . . . 3 . . . 6 . 3 . . 3 Max Kills in Single Turn 5 | . . . . . . 3 . . . 3 . 2 . . 5 Gunslinging . | . . . . . . . . . . . . . . . . Exploded 3 | . . . . . . 3 . . . 3 . 2 . . 3 Melee 1 | . . . . . . . . . . . . 1 . . . Uniques/NPCs Destroyed . | . . . . . . . . . . . . . . . . Combat | -11 -10 -10 -10 -9 -8 -7 -7 -7 -7 -6 -6 -6 -6 -6 -6 -------- Run | Jun Mat Min Exi Min Mat Fac Low Low Dat Pro Fac Ext Cet Arc Hub Damage Taken 3306 | . . 113 . . 59 1053 . 106 148 105 . 214 260 219 1029 Core 1258 | . . 113 . . 44 195 . . . 30 . 39 36 24 777 Absorbed by Shields . | . . . . . . . . . . . . . . . . Core Remaining (%) 78 | 100 . . . 54 92 . . . . 67 . . . . . Volleys Fired 13 | . . . . . . 2 . . . 6 . 3 . . 2 Largest 1 | . . . . . . 1 . . . 1 . 1 . . 1 Hottest 39 | . . . . . . 39 . . . 39 . 39 . . 39 Shots Fired 13 | . . . . . . 2 . . . 6 . 3 . . 2 Gun . | . . . . . . . . . . . . . . . . Cannon . | . . . . . . . . . . . . . . . . Launcher 13 | . . . . . . 2 . . . 6 . 3 . . 2 Special . | . . . . . . . . . . . . . . . . Kinetic . | . . . . . . . . . . . . . . . . Thermal . | . . . . . . . . . . . . . . . . Explosive 13 | . . . . . . 2 . . . 6 . 3 . . 2 Electromagnetic . | . . . . . . . . . . . . . . . . Robot Hit Streak 3 | . . . . . . . . . . 2 . 3 . . . Robot Miss Streak . | . . . . . . . . . . . . . . . . Penetration Max . | . . . . . . . . . . . . . . . . Secondary Targets . | . . . . . . . . . . . . . . . . Shots Hit Robots 8 | . . . . . . 1 . . 1 3 . 3 . . . Core Hits 28 | . . . . . . 5 . . . 10 . 6 . . 7 Critical Kills . | . . . . . . . . . . . . . . . . Critical Parts Destroyed . | . . . . . . . . . . . . . . . . Critical Strikes . | . . . . . . . . . . . . . . . . Melee Attacks 54 | . . . . . . 28 . 10 1 1 2 4 5 . 3 Impact . | . . . . . . . . . . . . . . . . Slashing . | . . . . . . . . . . . . . . . . Piercing 54 | . . . . . . 28 . 10 1 1 2 4 5 . 3 Sneak Attacks 2 | . . . . . . . . . 1 1 . . . . . Combat Hostiles . | . . . . . . . . . . . . . . . . Follow-up Attacks . | . . . . . . . . . . . . . . . . Damage Inflicted 2565 | . . 9 . . . 365 . . 63 821 . 512 . . 795 Guns . | . . . . . . . . . . . . . . . . Cannons . | . . . . . . . . . . . . . . . . Explosions 2237 | . . . . . . 325 . . . 711 . 406 . . 795 Melee 319 | . . . . . . 40 . . 63 110 . 106 . . . Ramming 9 | . . 9 . . . . . . . . . . . . . Kinetic . | . . . . . . . . . . . . . . . . Thermal . | . . . . . . . . . . . . . . . . Explosive 1494 | . . . . . . 325 . . . 711 . 406 . . 52 Electromagnetic 743 | . . . . . . . . . . . . . . . 743 Impact . | . . . . . . . . . . . . . . . . Slashing . | . . . . . . . . . . . . . . . . Piercing 319 | . . . . . . 40 . . 63 110 . 106 . . . Highest Corruption 18 | . . . . . . 18 18 18 18 18 . . . . 7 Average Corruption 15 | . . . . . . 13 18 18 18 18 . . . . 3 Corruption Purged . | . . . . . . . . . . . . . . . . Corruption Blocked . | . . . . . . . . . . . . . . . . Effects 27 | . . . . . . 9 2 3 2 11 . . . . . Message Errors 6 | . . . . . . 2 1 1 1 1 . . . . . Matter Fused 5 | . . . . . . 1 1 . . 3 . . . . . Heat Flow Errors 4 | . . . . . . 2 . 1 1 . . . . . . Energy Discharges 2 | . . . . . . 1 . . . 1 . . . . . Parts Rejected 1 | . . . . . . . . . . 1 . . . . . Data Loss (minor) 1 | . . . . . . . . . . 1 . . . . . Data Loss (major) 2 | . . . . . . . . 1 . 1 . . . . . Misfires 1 | . . . . . . . . . . 1 . . . . . Misdirections 4 | . . . . . . 3 . . . 1 . . . . . Weapon Failures 1 | . . . . . . . . . . 1 . . . . . Overload Shots . | . . . . . . . . . . . . . . . . Overflow Damage 277 | . . . . . . 7 . . 3 109 . 19 . . 139 Projectiles . | . . . . . . . . . . . . . . . . Explosions 204 | . . . . . . 7 . . . 39 . 19 . . 139 Melee 73 | . . . . . . . . . 3 70 . . . . . Knockbacks . | . . . . . . . . . . . . . . . . Impact . | . . . . . . . . . . . . . . . . Kinetic . | . . . . . . . . . . . . . . . . Secondary . | . . . . . . . . . . . . . . . . Self-Inflicted Damage 253 | . . 4 . . . 8 . . . 36 . . . . 205 Shots 4 | . . . . . . 1 . . . 1 . . . . 2 Rammed 2 | . . 1 . . . 1 . . . . . . . . . Targets Rammed 2 | . . 1 . . . 1 . . . . . . . . . Kicked . | . . . . . . . . . . . . . . . . Crushed . | . . . . . . . . . . . . . . . . Highest Temperature 175 | . . . . . . 156 . 170 175 2 . 23 11 24 17 Average Temperature 46 | . . . . . . 73 . 65 137 2 . 8 5 13 6 Received Heat Transfer 516 | . . 57 . . 18 54 . 90 . 18 . 57 63 63 96 Siege Activations . | . . . . . . . . . . . . . . . . Robots Corrupted . | . . . . . . . . . . . . . . . . Combat Hostiles . | . . . . . . . . . . . . . . . . Parts Fried 1 | . . . . . . . . . . . . . . . 1 Impact Corruptions . | . . . . . . . . . . . . . . . . Robots Melted . | . . . . . . . . . . . . . . . . Combat Hostiles . | . . . . . . . . . . . . . . . . Parts Melted . | . . . . . . . . . . . . . . . . Heat Transferred . | . . . . . . . . . . . . . . . . Parts Sabotaged . | . . . . . . . . . . . . . . . . Parts Stolen . | . . . . . . . . . . . . . . . . Parts Stripped . | . . . . . . . . . . . . . . . . Power Chain Reactions . | . . . . . . . . . . . . . . . . Missiles Intercepted . | . . . . . . . . . . . . . . . . Alert | -11 -10 -10 -10 -9 -8 -7 -7 -7 -7 -6 -6 -6 -6 -6 -6 ------- Run | Jun Mat Min Exi Min Mat Fac Low Low Dat Pro Fac Ext Cet Arc Hub Peak Influence 1043 | . 45 130 . 60 103 263 . . . . 147 419 269 167 1043 Initial 234 | . . 17 . . 23 46 . . . . 141 71 234 107 47 Average 160 | . 23 73 . 19 41 107 . . . . 141 247 251 133 574 Maximum Alert Level 3 | . . . . . . 1 . . . . . 2 1 . 3 Low Security (%) 74 | 100 100 100 . 100 100 89 . . . . 100 30 . 100 34 Level 1 19 | . . . . . . 10 . . . . . 68 100 . . Level 2 1 | . . . . . . . . . . . . 1 . . 14 Level 3 4 | . . . . . . . . . . . . . . . 51 Level 4 . | . . . . . . . . . . . . . . . . Level 5 . | . . . . . . . . . . . . . . . . High Security . | . . . . . . . . . . . . . . . . Max Security . | . . . . . . . . . . . . . . . . Squads Dispatched 12 | . 1 1 . . . 6 . . . . 1 . 1 . 2 Investigation 7 | . . 1 . . . 3 . . . . 1 . 1 . 1 Extermination 1 | . . . . . . 1 . . . . . . . . . Reinforcement 4 | . 1 . . . . 2 . . . . . . . . 1 Assault . | . . . . . . . . . . . . . . . . Garrison . | . . . . . . . . . . . . . . . . Intercept . | . . . . . . . . . . . . . . . . Searches Triggered . | . . . . . . . . . . . . . . . . Construction Impeded 1 | . . . . . . 1 . . . . . . . . . Haulers Reinforced . | . . . . . . . . . . . . . . . . Active Scanning Responses . | . . . . . . . . . . . . . . . . Cargo Convoy Interrupts . | . . . . . . . . . . . . . . . . Stealth | -11 -10 -10 -10 -9 -8 -7 -7 -7 -7 -6 -6 -6 -6 -6 -6 --------- Run | Jun Mat Min Exi Min Mat Fac Low Low Dat Pro Fac Ext Cet Arc Hub Distress Signals 3 | . . . . . 1 . . . . . . 2 . . . Communications Jammed . | . . . . . . . . . . . . . . . . Distress Signals . | . . . . . . . . . . . . . . . . Times Spotted 118 | . 3 5 . 6 6 20 1 7 4 7 . 17 16 4 22 Peak Tracking Total 15 | . 1 2 . 6 6 6 1 6 4 4 . 13 15 4 9 Tactical Retreats 17 | . . 2 . 1 1 4 1 3 . . . 2 . . 3 Traps | -11 -10 -10 -10 -9 -8 -7 -7 -7 -7 -6 -6 -6 -6 -6 -6 ------- Run | Jun Mat Min Exi Min Mat Fac Low Low Dat Pro Fac Ext Cet Arc Hub Traps Triggered 8 | . . . . . . . . . . . . 7 . . 1 Indirectly . | . . . . . . . . . . . . . . . . Trap Hack Attempts . | . . . . . . . . . . . . . . . . Triggered . | . . . . . . . . . . . . . . . . Disarmed . | . . . . . . . . . . . . . . . . Reprogrammed . | . . . . . . . . . . . . . . . . Reused . | . . . . . . . . . . . . . . . . Traps Extracted . | . . . . . . . . . . . . . . . . Installed . | . . . . . . . . . . . . . . . . Triggered 5 | . . . . . . . 1 . . 4 . . . . . Machines | -11 -10 -10 -10 -9 -8 -7 -7 -7 -7 -6 -6 -6 -6 -6 -6 ---------- Run | Jun Mat Min Exi Min Mat Fac Low Low Dat Pro Fac Ext Cet Arc Hub Machines Disabled 26 | . . . . . . 1 . . . . . 2 1 . 22 Max in Single Turn 14 | . . . . . . 1 . . . . . 1 1 . 14 Network Hub 2 | . . . . . . . . . . . . . . . 2 Machines Repaired . | . . . . . . . . . . . . . . . . Machines Sabotaged . | . . . . . . . . . . . . . . . . Overloaded Fab Kills . | . . . . . . . . . . . . . . . . Hacking | -11 -10 -10 -10 -9 -8 -7 -7 -7 -7 -6 -6 -6 -6 -6 -6 --------- Run | Jun Mat Min Exi Min Mat Fac Low Low Dat Pro Fac Ext Cet Arc Hub Machines Accessed 19 | . . 1 1 . . 6 1 1 3 . 2 1 2 . 1 Terminals 9 | . . . . . . 3 . 1 . . 2 1 2 . . Fabricators 1 | . . . . . . 1 . . . . . . . . . Repair Stations 1 | . . . . . . 1 . . . . . . . . . Recycling Units . | . . . . . . . . . . . . . . . . Scanalyzers . | . . . . . . . . . . . . . . . . Garrison Access 2 | . . . . . . 1 . . . . . . . . 1 Total Hacks 48 | . . 1 1 . . 12 1 1 22 . 3 2 3 . 2 Successful 33 | . . 1 1 . . 4 1 1 22 . 1 1 1 . . Failed 15 | . . . . . . 8 . . . . 2 1 2 . 2 Catastrophic 7 | . . . . . . 4 . . . . 1 . 1 . 1 Database Lockouts . | . . . . . . . . . . . . . . . . Manual 7 | . . . 1 . . 4 . . . . . . . . 2 Terminals 17 | . . . . . . 8 . 1 . . 3 2 3 . . Fabricators 1 | . . . . . . 1 . . . . . . . . . Repair Stations 1 | . . . . . . 1 . . . . . . . . . Recycling Units . | . . . . . . . . . . . . . . . . Scanalyzers . | . . . . . . . . . . . . . . . . Garrison Access 4 | . . . . . . 2 . . . . . . . . 2 Terminal Hacks 31 | . . 1 1 . . 2 1 1 22 . 1 1 1 . . Record 4 | . . . . . . . . 1 2 . . . 1 . . Part Schematic 12 | . . . . . . . . . 12 . . . . . . Robot Schematic 5 | . . . . . . . . . 5 . . . . . . Prototype ID Bank 3 | . . . . . . . . . 3 . . . . . . Open Door 4 | . . 1 . . . . 1 . . . 1 1 . . . Level Access Points 1 | . . . . . . 1 . . . . . . . . . Branch Access Points 1 | . . . . . . 1 . . . . . . . . . EX-Prototype ID Bank 1 | . . . 1 . . . . . . . . . . . . Fabricator Hacks . | . . . . . . . . . . . . . . . . Repair Station Hacks 1 | . . . . . . 1 . . . . . . . . . Refit 1 | . . . . . . 1 . . . . . . . . . Recycling Unit Hacks . | . . . . . . . . . . . . . . . . Scanalyzer . | . . . . . . . . . . . . . . . . Garrison Access Hacks . | . . . . . . . . . . . . . . . . Unauthorized Hacks 1 | . . . . . . 1 . . . . . . . . . Terminals . | . . . . . . . . . . . . . . . . Fabricators 1 | . . . . . . 1 . . . . . . . . . Liberate 1 | . . . . . . 1 . . . . . . . . . Repair Stations . | . . . . . . . . . . . . . . . . Recycling Units . | . . . . . . . . . . . . . . . . Scanalyzers . | . . . . . . . . . . . . . . . . Garrison Access . | . . . . . . . . . . . . . . . . Data Cores Recovered . | . . . . . . . . . . . . . . . . Used . | . . . . . . . . . . . . . . . . Hacking Detections 10 | . . . . . . 6 . . . . 1 1 1 . 1 Full Trace Events 6 | . . . . . . 3 . . . . 1 . 1 . 1 Feedback Events . | . . . . . . . . . . . . . . . . Feedback Blocked . | . . . . . . . . . . . . . . . . Robot Schematics Acquired 5 | . . . . . . . . . 5 . . . . . . Robots Built . | . . . . . . . . . . . . . . . . Authchips . | . . . . . . . . . . . . . . . . Time . | . . . . . . . . . . . . . . . . Total Robot Build Rating . | . . . . . . . . . . . . . . . . Part Schematics Acquired 12 | . . . . . . . . . 12 . . . . . . Parts Built . | . . . . . . . . . . . . . . . . Authchips . | . . . . . . . . . . . . . . . . Time . | . . . . . . . . . . . . . . . . Total Part Build Rating . | . . . . . . . . . . . . . . . . Parts Repaired . | . . . . . . . . . . . . . . . . Time . | . . . . . . . . . . . . . . . . Parts Recycled . | . . . . . . . . . . . . . . . . Recycled Matter . | . . . . . . . . . . . . . . . . Retrieved Matter . | . . . . . . . . . . . . . . . . Retrieved Components . | . . . . . . . . . . . . . . . . Parts Scanalyzed . | . . . . . . . . . . . . . . . . Part Schematics Acquired . | . . . . . . . . . . . . . . . . Parts Damaged . | . . . . . . . . . . . . . . . . Bothacking | -11 -10 -10 -10 -9 -8 -7 -7 -7 -7 -6 -6 -6 -6 -6 -6 ------------ Run | Jun Mat Min Exi Min Mat Fac Low Low Dat Pro Fac Ext Cet Arc Hub Used RIF Installer . | . . . . . . . . . . . . . . . . Robots Hacked . | . . . . . . . . . . . . . . . . Non-combat . | . . . . . . . . . . . . . . . . Combat . | . . . . . . . . . . . . . . . . Robot Hacks Applied . | . . . . . . . . . . . . . . . . Relay Couplers Released . | . . . . . . . . . . . . . . . . Fabnet Peak Effective % . | . . . . . . . . . . . . . . . . Robots Rewired . | . . . . . . . . . . . . . . . . Allies Hacked . | . . . . . . . . . . . . . . . . Hacks Repelled . | . . . . . . . . . . . . . . . . Allies | -11 -10 -10 -10 -9 -8 -7 -7 -7 -7 -6 -6 -6 -6 -6 -6 -------- Run | Jun Mat Min Exi Min Mat Fac Low Low Dat Pro Fac Ext Cet Arc Hub Total Allies 3 | . . 2 . . . . . . . . . 1 . . . Largest Group 2 | . . 2 . . . . . . . . . 1 . . . Highest-Rated Group 45 | . . 45 . . . . . . . . . 31 . . . Highest-Rated Ally 31 | . . 31 . . . . . . . . . 31 . . . Total Orders . | . . . . . . . . . . . . . . . . Ally Attacks 20 | . . 15 . . . . . . . . . 5 . . . Total Damage 300 | . . 188 . . . . . . . . . 112 . . . Kills 2 | . . 2 . . . . . . . . . . . . . Allies Corrupted . | . . . . . . . . . . . . . . . . Allies Melted . | . . . . . . . . . . . . . . . . Intel | -11 -10 -10 -10 -9 -8 -7 -7 -7 -7 -6 -6 -6 -6 -6 -6 ------- Run | Jun Mat Min Exi Min Mat Fac Low Low Dat Pro Fac Ext Cet Arc Hub Robot Analysis Total 131 | . . . . . . . . . 131 . . . . . . Derelict Logs Recovered 4 | . . 1 . . . . . 1 . 2 . . . . . Drone Launches . | . . . . . . . . . . . . . . . . Drone Recoveries . | . . . . . . . . . . . . . . . . Exploration | -11 -10 -10 -10 -9 -8 -7 -7 -7 -7 -6 -6 -6 -6 -6 -6 ------------- Run | Jun Mat Min Exi Min Mat Fac Low Low Dat Pro Fac Ext Cet Arc Hub Turns Passed 1621 | 12 22 123 75 106 56 410 93 124 47 179 43 160 59 14 98 Spaces Moved 3523 | 24 44 201 211 294 144 717 234 253 97 408 119 404 133 42 198 Core 217 | 24 44 106 . . . . . . . . . . . . 43 Treads . | . . . . . . . . . . . . . . . . Legs . | . . . . . . . . . . . . . . . . Wheels . | . . . . . . . . . . . . . . . . Hover . | . . . . . . . . . . . . . . . . Flight 3306 | . . 95 211 294 144 717 234 253 97 408 119 404 133 42 155 Fastest Speed 27 | 50 50 35 35 35 35 39 39 39 39 39 29 29 29 29 27 Average Speed 36 | 50 50 42 35 35 35 39 39 39 39 39 29 29 29 29 35 Slowest Speed 50 | 50 50 50 35 35 35 50 39 39 39 39 29 29 29 32 50 Overloaded Moves . | . . . . . . . . . . . . . . . . Propulsion Burnouts . | . . . . . . . . . . . . . . . . Robots Hopped 36 | . . 1 . 5 3 7 2 1 3 . 1 6 5 . 2 Cave-ins Triggered 3 | . . . . . . 3 . . . . . . . . . Exploration Rate (%) 46 | 3 17 69 59 62 18 26 44 51 77 65 6 74 58 77 30 Regions Visited 15 Branch Regions 11 Pre-discovered Areas 26 | . . . . . . . . . 26 . . . . . . Known Exits Taken 3 | . . . . . 1 1 . . . 1 . . . . . Unknown Exits Taken 12 | 1 1 1 1 1 . . 1 1 1 . 1 1 1 1 . Scrap Searched 11 | . . 2 . 2 . . 1 2 . 4 . . . . . Spaces Dug 51 | . . . . . . 37 . 10 . . 2 . . . 2 Terrain Destroyed 513 | . . . . . . 48 . 10 . 80 2 35 . . 338 Melee 41 | . . . . . . 27 . 10 . . 2 . . . 2 Projectile . | . . . . . . . . . . . . . . . . AOE 472 | . . . . . . 21 . . . 80 . 35 . . 336 Terrain Rammed . | . . . . . . . . . . . . . . . . Walls Destroyed . | . . . . . . . . . . . . . . . . Machines Disabled . | . . . . . . . . . . . . . . . . Actions | -11 -10 -10 -10 -9 -8 -7 -7 -7 -7 -6 -6 -6 -6 -6 -6 --------- Run | Jun Mat Min Exi Min Mat Fac Low Low Dat Pro Fac Ext Cet Arc Hub Total 3704 | 23 43 234 211 293 144 793 232 261 101 418 122 430 140 43 216 Wait 95 | . . 31 . . . 32 . . 7 . . 9 6 . 10 Move 3438 | 23 43 198 210 283 137 703 229 250 90 407 116 392 122 41 194 Hop 34 | . . 1 . 5 3 6 2 1 3 . 1 5 5 . 2 Pick Up 16 | . . . 1 3 . 10 . . . . 1 1 . . . Fast Attach 11 | . . 3 . . 3 1 1 . . 1 . 1 . . 1 Attach 16 | . . . . . . 6 . . . 2 2 1 1 . 4 Detach 4 | . . . . . . 2 . . . 1 . . 1 . . Swap . | . . . . . . . . . . . . . . . . Drop 7 | . . . . 2 1 2 . . . . . . . 2 . Fire 13 | . . . . . . 2 . . . 6 . 3 . . 2 Melee 54 | . . . . . . 28 . 10 1 1 2 4 5 . 3 Ram 1 | . . 1 . . . . . . . . . . . . . Kick . | . . . . . . . . . . . . . . . . Crush . | . . . . . . . . . . . . . . . . Escape Stasis 15 | . . . . . . 1 . . . . . 14 . . . Rewire . | . . . . . . . . . . . . . . . . Trap . | . . . . . . . . . . . . . . . . Miscellaneous . | . . . . . . . . . . . . . . . . Route ------- -11/Junkyard -10/Materials -10/Mines (discovered 3 exits: [*Mat x2] / *Exi) -10/Exiles -9/Mines -8/Materials (discovered 2 exits: *Fac / [*Sto]) -7/Factory (discovered 6 exits: Fac x4 / *Low x2) -7/Lower Caves -7/Lower Caves -7/Data Miner -6/Proximity Caves -6/Factory -6/Extension (discovered 2 exits: [*Fac] / *Cet) -6/Cetus -6/Archives (discovered 2 exits: *Hub x2) -6/Hub_04(d) History --------- Turn | Location | Event 6 | -11/Junkyard | Discovered new exit (range 13) 13 | -11/Junkyard | Entered Materials 32 | -10/Materials | Discovered new exit (range 6) 35 | -10/Materials | Entered Mines 78 | -10/Mines | Learned Materials non-interactive machine intel 80 | -10/Mines | Discovered new exit (range 7) 89 | -10/Mines | Met a Derelict shopkeep closing up shop 119 | -10/Mines | Discovered new exit (range 9) 126 | -10/Mines | Deemed a non-threat by the Exiles lab entrance 126 | -10/Mines | Discovered new exit (range 5) 158 | -10/Mines | Entered Exiles 167 | -10/Exiles | Met 8R-AWN 174 | -10/Exiles | Met EX-HEX 183 | -10/Exiles | Met EX-BIN 187 | -10/Exiles | Aligned with FarCom system 188 | -10/Exiles | Given EX-Vault access code 196 | -10/Exiles | Opened EX-Vault 198 | -10/Exiles | Found Flying Fortress v7 208 | -10/Exiles | Warned to stay clear of 0b10 Research branches 218 | -10/Exiles | Met EX-DEC 230 | -10/Exiles | Discovered new exit (range 10) 233 | -10/Exiles | Left Exiles lab with Flying Fortress v7 233 | -10/Exiles | Entered Mines 240 | -9/Mines | Received a Rocket Launcher from a helpful Derelict 280 | -9/Mines | Assembled infested the area 285 | -9/Mines | Assisted by a Guerilla fighting off Assembled 311 | -9/Mines | Build established: Mutant 332 | -9/Mines | Discovered new exit (range 14) 339 | -9/Mines | Entered Materials 339 | -8/Materials | Evolved 4 slots: Propulsion x2, Utility x2 340 | -8/Materials | Loaded intel: 45 non-interactive machine locations 379 | -8/Materials | Discovered new exit (range 9) 391 | -8/Materials | Discovered new exit (range 9) 394 | -8/Materials | Identified exit to Factory 395 | -8/Materials | Entered Factory 395 | -7/Factory | Evolved 2 slots: Power x1, Propulsion x1 554 | -7/Factory | Identified exit to Factory 636 | -7/Factory | Identified exit to Lower Caves 710 | -7/Factory | Crushed by falling debris 750 | -7/Factory | Crushed by falling debris 750 | -7/Factory | System corruption reached 10% 755 | -7/Factory | Crushed by falling debris 781 | -7/Factory | Lost 3 parts (1p1n1u) 805 | -7/Factory | Entered Lower Caves 818 | -7/Lower Caves | Encountered a Warlord checkpoint 893 | -7/Lower Caves | Discovered new exit (range 14) 898 | -7/Lower Caves | Entered another Lower Caves area 981 | -7/Lower Caves | Learned Factory garrison access intel 1018 | -7/Lower Caves | Discovered new exit (range 10) 1022 | -7/Lower Caves | Entered Data Miner 1022 | -7/Data Miner | Discovered new exit (range 7) 1030 | -7/Data Miner | Met Data Miner 1037 | -7/Data Miner | Learned location of Section 7 (-2) 1037 | -7/Data Miner | Acquired the access code to Warlord's prototype stash 1044 | -7/Data Miner | Received God Mode back door access code from Data Miner 1051 | -7/Data Miner | Interfaced with the Data Conduit 1069 | -7/Data Miner | Entered Proximity Caves 1075 | -6/Proximity Caves | Learned Factory stockpile data 1218 | -6/Proximity Caves | Learned Factory trap positions 1230 | -6/Proximity Caves | Discovered exit to Factory (range 13) 1248 | -6/Proximity Caves | Entered Factory 1248 | -6/Factory | Evolved 2 slots: Propulsion x2 1249 | -6/Factory | Loaded intel: 88 trap records 1251 | -6/Factory | Loaded intel: 245 machine locations 1252 | -6/Factory | Loaded intel: 4 garrison access locations 1288 | -6/Factory | Discovered new exit (range 10) 1291 | -6/Factory | Entered Extension 1292 | -6/Extension | Loaded intel: 20 machine locations 1351 | -6/Extension | Rescued a captive Derelict 1376 | -6/Extension | Spotted B-75 Beast 1377 | -6/Extension | Spotted B-75 Beast 1444 | -6/Extension | Discovered new exit (range 10) 1444 | -6/Extension | Discovered new exit (range 6) 1451 | -6/Extension | Entered Cetus 1452 | -6/Cetus | Loaded intel: 24 machine locations 1455 | -6/Cetus | Spotted Cetus Guard 1455 | -6/Cetus | Spotted Cetus Guard 1455 | -6/Cetus | Spotted Cetus Guard 1455 | -6/Cetus | Spotted Cetus Guard 1492 | -6/Cetus | Found a strange terminal 1496 | -6/Cetus | Discovered new exit (range 19) 1503 | -6/Cetus | Spotted Cetus Guard 1503 | -6/Cetus | Spotted Cetus Guard 1503 | -6/Cetus | Spotted Cetus Guard 1503 | -6/Cetus | Spotted Cetus Guard 1510 | -6/Cetus | Entered Archives 1511 | -6/Archives | Loaded intel: 8 machine locations 1516 | -6/Archives | Discovered new exit (range 20) 1517 | -6/Archives | Discovered new exit (range 20) 1524 | -6/Archives | Entered Hub_04(d) 1525 | -6/Hub_04(d) | Loaded intel: 116 machine locations 1553 | -6/Hub_04(d) | Lost 4 parts (2n1u1w) 1558 | -6/Hub_04(d) | Network Hub disabled 1570 | -6/Hub_04(d) | Spotted Lightning 1570 | -6/Hub_04(d) | Spotted Lightning 1571 | -6/Hub_04(d) | Spotted Lightning 1589 | -6/Hub_04(d) | Network Hub disabled 1590 | -6/Hub_04(d) | Core integrity fell below 50% 1594 | -6/Hub_04(d) | Spotted Lightning 1596 | -6/Hub_04(d) | Spotted Lightning 1597 | -6/Hub_04(d) | Spotted Lightning 1611 | -6/Hub_04(d) | Core integrity fell below 20% 1620 | -6/Hub_04(d) | Lost 8 parts (2p5n1w) 1622 | -6/Hub_04(d) | Destroyed by Lightning with EMDS Last Messages --------------- 01573_ Cesium-ion Thruster destroyed. 01574_ Penetrated by EMDS Slug. 01574_ Mic. Nuclear Core destroyed. 01579_ Slug penetrates Wall. 01581_ Knocked back. 01589_ ALERT: Network intrusion management efficiency at 70%. 01589_ Network Hub explodes. 01589_ Cesium-ion Thruster destroyed. 01589_ Destroyed Cesium-ion Thruster. 01589_ Archive Unit disabled. 01589_ Terminal disabled. 01589_ Archive Unit disabled. 01597_ EMDS Slug penetrates Wall. 01608_ ALERT: Suspicious intruders detected, dispatching Cutter reinforcements to area. 01608_ EMDS Slug penetrates Wall. 01610_ EMDS Slug penetrates Archive Unit. 01610_ Penetrated by EMDS Slug. 01619_ EMDS Slug penetrates Archive Unit. 01620_ Penetrated by EMDS Slug. Map ----- +----------------------------------------------------+ | ??????????###??????# """ " | | ????????### ####### | | ??????? # | | ??????? # | | ?????? """ "" | | ?????? " "" | | ????? " "" | | ????? " " | | ????? " """ | | ????# " | | ????# " *% | | ????# " % | | ????# " " " | | ????# " " " | | ????# " " # % | | ????# " " # | | ?????# """"";;;;;;""# | | ?????# ""; ; | | ########## ;;Y; | | #=! ## # | | #=! ## """""""### | | #/! ## " #= | | # ## ### | | # h c/c + | | # h ##" ## | | #@ """ " ##" ## % " | | # """" i # # = | | # """ H + # ! | | # """ # # | | # h # ######## | | # ## ###?????? | | #####/###;##### # ?????? | | ?# #% # """" # | | ?# "" h "" # # """" # | | ?# "" "" # # """" # | | ?# " "" # # """" # | | ?# "" h"" # + # | | ?# # # """" # | | ?# """ h ""i# # """" # | | ?# """ "" #% # """" # | | ?# """" " # # """" " | | ?# """" " # " # | | ?# + + """ # | | ?# # # "" " | | ?########"""### # " " | | ???????# " # " | | ???????# " # " | | ????#####" ###### " | | ??### " " # " | | ??# " " " " | +----------------------------------------------------+ Best States ------------- Heat Dissipation 37 Energy Generation 25 Energy Capacity 200 Matter Stores 300 Matter Capacity 300 Sight Range 20 Terrain Scan Density 110 Armor Coverage 450 Evasion (%) 64 Offensive Hacking 10 Item Schematics ----------------- Combat Drone Bay | -7/Data Miner | Free Lgt. Regenerative Plating | -7/Data Miner | Free Cld. Aerolev Unit | -7/Data Miner | Free Thermal Defense Suite | -7/Data Miner | Free Antigrav System | -7/Data Miner | Free Antimatter Cannon | -7/Data Miner | Free Recoil Nullifier | -7/Data Miner | Free KE Penetrator | -7/Data Miner | Free Adv. System Restoration Module | -7/Data Miner | Free Hyp. Coil Gun | -7/Data Miner | Free Adv. Reaction Control System | -7/Data Miner | Free Imp. Fusion Compressor | -7/Data Miner | Free Robot Schematics ------------------ C-17 Slicer | -7/Data Miner | Free S-27 Virus | -7/Data Miner | Free W-25 Informer | -7/Data Miner | Free L-41 Fighter | -7/Data Miner | Free B-48 Gladiator | -7/Data Miner | Free Fabricated ------------ Nothing Alien Tech Used ----------------- None Achievements -------------- None Challenges ------------ None Game ------ Seed MissileIonAccelerator Manual? 0 Play Time 00:27:48 Cumulative 190.4 hours Start 2023.05.10 @ 21:37:35 End 2023.05.10 @ 22:03:00 Sessions 1 Manual Loads 0 Difficulty Rogue Special Mode None Game No. 543 Rogue 543 Adventurer 0 Explorer 0 Win Type - Total 9 Types 7/0/1/1/0/0/0/0/0 Lore% 77 Gallery% 76 Achievement% 68 Wizard Run 0 Options --------- ASCII 0 Keyboard 0 Movement Numpad Keybinds 0 Fullscreen 1 Font 16/SmallcapsGlow Map View 75x55 Tactical HUD 1 Map Filters NONE Filters NONE Steam 1 RUN: 8fd097d2-4e6a-4062-9d02-4a6be969f0fa